Cogmind - Beta 13 @@@ ROGUE MODE // 2024.04.04 @ 16:17:05 Player: SnowyImp Result: Destroyed by G-67 Veteran with Field Laser Performance ------------- Evolutions (6) 3000 Regions Visited (10) 2000 Robots Destroyed (42) 210 Value Destroyed (1408) 1408 Prototype IDs (2) 40 Alien Tech Used (0) 0 Bonus (500) 500 TOTAL SCORE: 7158 Bonus ------- Entered DSFs 500 Cogmind --------- Core Integrity 0/1150 Matter 63/300 Energy 57/100 System Corruption 6% Temperature Cool (30) Movement Core (50) Location -4/Factory Parts ------- > --- POWER (1) -------- (None) > --- PROPULSION (8) --- (None) > --- UTILITY (8) ------ (None) > --- WEAPON (2) ------- (None) > --- INVENTORY (5) ---- Advanced Targeting Computer Advanced Shield Generator Improved Remote Datajack Peak State ------------ > --- POWER ------------ Light Nuclear Core > --- PROPULSION ------- VTOL Module VTOL Module VTOL Module Nuclear Pulse Thruster > --- UTILITY ---------- Enhanced Optical Array Advanced Sensor Array Improved Signal Interpreter Advanced ECM Suite Hacking Suite Hacking Suite Hacking Suite Hacking Suite > --- WEAPON ----------- Backup Laser III Power Maul > --- INVENTORY -------- Transmission Jammer Hacking Suite Improved Remote Datajack [Rating: 51] Favorites ----------- Power Improved Ion Engine Engine Improved Ion Engine Power Core Light Nuclear Core Propulsion Aluminum Leg Treads Light Treads Leg Aluminum Leg Flight Unit VTOL Module Utility Hacking Suite Device Advanced ECM Suite Storage Medium Storage Unit Processor Signal Interpreter Hackware Hacking Suite Weapon Great Maul Energy Gun Backup Laser III Ballistic Gun Light Assault Rifle Ballistic Cannon Gauss Cannon Launcher Micro-nuke Launcher Special Weapon Improved Remote Datajack Impact Weapon Great Maul Build | -11 -10 -9 -8 -7 -6 -6 -6 -5 -5 -4 ------- Run | Yrd Mat Mat Mat Fac Fac Low Low Fac DSF Fac Slots Evolved 12 | . . 2 2 2 2 . . 2 . 2 Power . | . . . . . . . . . . . Propulsion 6 | . . 2 . . . . . 2 . 2 Utility 6 | . . . 2 2 2 . . . . . Weapon . | . . . . . . . . . . . Parts Attached 80 | 6 3 16 7 20 7 3 . 1 12 5 Power 7 | 1 . 1 1 3 1 . . . . . Engine 6 | 1 . 1 1 3 . . . . . . Core 1 | . . . . . 1 . . . . . Reactor . | . . . . . . . . . . . Propulsion 31 | 2 1 11 2 9 1 1 . . 1 3 Treads 4 | . . 1 . . . . . . . 3 Leg 20 | 2 1 10 2 4 . 1 . . . . Wheel . | . . . . . . . . . . . Hover . | . . . . . . . . . . . Flight 7 | . . . . 5 1 . . . 1 . Utility 22 | 1 2 . 4 4 5 1 . 1 4 . Device 9 | . . . 1 . 3 1 . . 4 . Storage 2 | 1 1 . . . . . . . . . Processor 5 | . 1 . . 2 2 . . . . . Hackware 6 | . . . 3 2 . . . 1 . . Protection . | . . . . . . . . . . . Artifact . | . . . . . . . . . . . Weapon 20 | 2 . 4 . 4 . 1 . . 7 2 Energy Gun 2 | . . . . 1 . . . . . 1 Energy Cannon . | . . . . . . . . . . . Ballistic Gun 4 | 2 . 2 . . . . . . . . Ballistic Cannon 2 | . . . . 1 . . . . . 1 Launcher 7 | . . . . . . . . . 7 . Special Weapon 1 | . . . . . . 1 . . . . Impact Weapon 4 | . . 2 . 2 . . . . . . Slashing Weapon . | . . . . . . . . . . . Piercing Weapon . | . . . . . . . . . . . Special Melee Weapon . | . . . . . . . . . . . Unidentified Prototypes . | . . . . . . . . . . . Parts Lost 38 | . . 1 4 9 5 3 . . 11 5 Power 4 | . . . 1 3 . . . . . . Propulsion 16 | . . 1 2 4 3 2 . . 1 3 Utility 10 | . . . 1 1 2 1 . . 5 . Weapon 8 | . . . . 1 . . . . 5 2 Highest Loss Streak 10 | . . 1 4 3 5 2 . . 10 3 To Critical Strikes 1 | . . . . . . 1 . . . . Average Slot Usage (%) 78 | . 90 98 89 89 95 36 . . 6 2 Engine 5 | . 14 11 6 5 . . . . . . Leg 21 | . 28 41 31 22 . . . . . . Flight 4 | . . . . 4 24 2 . . . . Device 1 | . . . . . 9 7 . . 3 . Storage 3 | . 14 11 4 . . . . . . . Processor 9 | . 4 11 9 12 13 9 . . . . Hackware 14 | . . . 17 28 26 15 . . 2 . Energy Gun 1 | . . . . 3 5 . . . . . Ballistic Gun 3 | . 28 7 . . . . . . . . Ballistic Cannon 1 | . . . . 5 . . . . . . Impact Weapon 6 | . . 14 18 2 5 . . . . . Naked Turns 253 | . . . . . . 50 62 . 14 127 Heaviest Build 25 | 12 17 25 25 13 14 8 . . 12 10 Greatest Support 60 | 20 20 60 60 50 18 18 3 3 4 30 Greatest Overweight (x) 3 | 3 . 1 . 1 3 1 . . 3 3 Average Overweight (x) . | . . . . . . . . . . . Largest Inventory Capacity 10 | 8 10 10 10 5 5 5 5 5 5 5 Average Capacity 6 | 7 8 10 7 5 5 5 5 5 5 5 Most Carried 10 | 6 8 10 10 5 4 3 2 1 3 3 Average Carried 5 | 2 6 9 6 4 2 1 2 1 1 3 Final Capacity 10 | 8 10 10 5 5 5 5 5 5 5 5 Final Carried 10 | 6 8 10 4 5 3 2 2 1 3 3 Class Distribution -------------------- 40% | Mutant 40% | Hacker-Mutant 5% | Hacker-Sprinter 4% | Hacker-Ninja 3% | Scavenger-Mutant Dominant Class ---------------- Mutant | -10/Materials Mutant | -9/Materials Hacker-Mutant | -8/Materials Hacker-Mutant | -7/Factory Hacker-Ninja | -6/Factory Hacker-Mutant | -6/Lower Caves Mutant | -6/Lower Caves Mutant | -5/Factory Mutant | -5/DSF Mutant | -4/Factory Resources | -11 -10 -9 -8 -7 -6 -6 -6 -5 -5 -4 ----------- Run | Yrd Mat Mat Mat Fac Fac Low Low Fac DSF Fac Matter Collected 1065 | 214 74 253 50 337 18 85 . . 6 28 Remotely . | . . . . . . . . . . . Salvage Created 1611 | . 111 478 134 465 18 . . . 286 119 Parts 81 | . 13 26 4 24 1 . . . 6 7 Haulers Intercepted . | . . . . . . . . . . . Recyclers Shooed 1 | . . . . 1 . . . . . . Parts Field Recycled . | . . . . . . . . . . . Retrieved Matter . | . . . . . . . . . . . Parts Self-Destructed 4 | . . . . . . 4 . . . . Prevented . | . . . . . . . . . . . Kills | -11 -10 -9 -8 -7 -6 -6 -6 -5 -5 -4 ------- Run | Yrd Mat Mat Mat Fac Fac Low Low Fac DSF Fac Combat Hostiles Destroyed 37 | . 5 14 2 12 . . . . 2 2 Melee 10 | . . 7 2 1 . . . . . . Guns 13 | . 5 6 . 2 . . . . . . Cannons 9 | . . . . 8 . . . . . 1 AOE 3 | . . . . . . . . . 2 1 Classes Destroyed 9 | . 2 1 1 3 1 . . . 1 . Worker 1 | . . . . . 1 . . . . . Builder 1 | . . . . 1 . . . . . . Recycler 1 | . . . . 1 . . . . . . Watcher 2 | . . . 2 . . . . . . . Swarmer 12 | . 3 5 . 4 . . . . . . Cutter 2 | . . . . . . . . . 2 . Grunt 13 | . 2 5 2 3 . . . . . 1 Sentry 6 | . . 4 . 2 . . . . . . Programmer 4 | . . . . 3 . . . . . 1 Best Kill Streak 5 | . 5 3 3 4 1 . . . 2 2 Combat Bots Only 5 | . 5 3 2 4 . . . . 2 2 Max Kills in Single Turn 2 | . 1 1 1 1 1 . . . 2 1 Gunslinging . | . . . . . . . . . . . Exploded 2 | . . . . . . . . . 2 1 Melee 1 | . . 1 1 1 . . . . . . Uniques/NPCs Destroyed . | . . . . . . . . . . . Combat | -11 -10 -9 -8 -7 -6 -6 -6 -5 -5 -4 -------- Run | Yrd Mat Mat Mat Fac Fac Low Low Fac DSF Fac Hostile Shots Fired 571 | . 25 78 8 163 26 73 . . 63 135 Missed 202 | . 7 24 3 63 10 37 . . 20 38 Damage Taken 6565 | . 169 572 478 1062 251 539 . . 1431 2063 Core 3017 | . 19 88 58 158 121 450 . . 970 1153 Absorbed by Shields 85 | . . . . . . . . . 85 . Regen/Repaired (Parts) 101 | . . . . 101 . . . . . . Core Remaining (%) 67 | 100 92 78 89 77 . . 32 . 3 . Volleys Fired 90 | . 14 22 . 38 1 2 . . 6 7 Largest 2 | . 2 2 . 2 1 1 . . 2 1 Hottest 98 | . 40 46 . 88 40 7 . . 98 65 Shots Fired 161 | . 28 44 . 73 1 2 . . 7 6 Gun 112 | . 28 44 . 38 1 . . . . 1 Cannon 40 | . . . . 35 . . . . . 5 Launcher 7 | . . . . . . . . . 7 . Special 2 | . . . . . . 2 . . . . Kinetic 112 | . 28 44 . 35 . . . . . 5 Thermal 39 | . . . . 38 1 . . . . . Explosive 7 | . . . . . . . . . 7 . Electromagnetic 1 | . . . . . . . . . . 1 Robot Hit Streak 18 | . 18 9 . 15 4 6 . . 12 5 Robot Miss Streak 3 | . 2 3 . 2 . . . . . 1 Penetration Max 1 | . . . . 1 . . . . . . Secondary Targets . | . . . . . . . . . . . Shots Hit Robots 152 | . 21 43 7 67 1 2 . . 6 5 Core Hits 74 | . 8 14 2 21 1 . . . 17 11 Critical Kills 2 | . . . 2 . . . . . . . Critical Parts Destroyed 2 | . . . . 2 . . . . . . Critical Strikes 6 | . . . 2 4 . . . . . . Blast 2 | . . . . 2 . . . . . . Smash 4 | . . . 2 2 . . . . . . Melee Attacks 57 | . . 22 19 16 . . . . . . Impact 57 | . . 22 19 16 . . . . . . Slashing . | . . . . . . . . . . . Piercing . | . . . . . . . . . . . Sneak Attacks 1 | . . . . 1 . . . . . . Combat Hostiles . | . . . . . . . . . . . Follow-up Attacks 4 | . . . 1 3 . . . . . . Damage Inflicted 4760 | . 172 896 338 1698 12 4 . . 1050 590 Guns 895 | . 172 330 . 358 12 . . . . 23 Cannons 1042 | . . . . 853 . . . . . 189 Explosions 1387 | . . . . . . . . . 1050 337 Melee 1391 | . . 566 338 487 . . . . . . Ramming 45 | . . . . . . 4 . . . 41 Kinetic 1544 | . 172 330 . 853 . . . . . 189 Thermal 707 | . . . . 358 12 . . . . 337 Explosive 1050 | . . . . . . . . . 1050 . Electromagnetic 23 | . . . . . . . . . . 23 Impact 1391 | . . 566 338 487 . . . . . . Slashing . | . . . . . . . . . . . Piercing . | . . . . . . . . . . . Highest Corruption 9 | . . 1 9 2 . . . . . 6 Average Corruption 4 | . . 1 6 1 . . . . . 3 Corruption Purged . | . . . . . . . . . . . Corruption Blocked . | . . . . . . . . . . . Effects 8 | . . . 6 . . . . . . 2 Message Errors 1 | . . . 1 . . . . . . . Matter Fused 6 | . . . 5 . . . . . . 1 Weapon Failures 1 | . . . . . . . . . . 1 Overload Shots . | . . . . . . . . . . . Overflow Damage 341 | . . 86 38 124 . . . . 10 83 Projectiles 58 | . . . . 39 . . . . . 19 Explosions 74 | . . . . . . . . . 10 64 Melee 209 | . . 86 38 85 . . . . . . Knockbacks 12 | . . 3 2 6 . . . . . 1 Impact 5 | . . 3 2 . . . . . . . Kinetic 7 | . . . . 6 . . . . . 1 Secondary . | . . . . . . . . . . . Self-Inflicted Damage 163 | . . . . . . 1 . . 63 99 Shots 3 | . . . . . . . . . 2 1 Rammed 28 | . . . . . . 1 . . 1 26 Targets Rammed 30 | . . . . . . 3 . . 1 26 Kicked 2 | . . . . . . 2 . . . . Crushed . | . . . . . . . . . . . Highest Temperature 76 | . 6 27 . 76 . . . . . 13 Average Temperature 21 | . 6 6 . 32 . . . . . 7 Received Heat Transfer 1109 | . 42 195 45 264 36 9 . . 63 455 Siege Activations . | . . . . . . . . . . . Robots Corrupted . | . . . . . . . . . . . Combat Hostiles . | . . . . . . . . . . . Parts Fried 7 | . . 3 3 1 . . . . . . Impact Corruptions 12 | . . 5 3 4 . . . . . . Robots Melted . | . . . . . . . . . . . Combat Hostiles . | . . . . . . . . . . . Parts Melted 1 | . . . . 1 . . . . . . Heat Transferred 1199 | . . . . 962 37 . . . . 200 Parts Sabotaged . | . . . . . . . . . . . Parts Stolen . | . . . . . . . . . . . Parts Stripped . | . . . . . . . . . . . Power Chain Reactions 1 | . . . . . . . . . . 1 Alert | -11 -10 -9 -8 -7 -6 -6 -6 -5 -5 -4 ------- Run | Yrd Mat Mat Mat Fac Fac Low Low Fac DSF Fac Peak Influence 329 | . 165 329 160 279 147 . . 53 149 77 Initial 138 | . . 69 138 38 136 . . 53 37 77 Average 112 | . 100 200 57 98 113 . . 53 84 67 Maximum Alert Level 1 | . . 1 . 1 . . . . . . Low Security (%) 83 | 100 100 42 100 89 100 . . 100 100 100 Level 1 16 | . . 57 . 10 . . . . . . Level 2 . | . . . . . . . . . . . Level 3 . | . . . . . . . . . . . Level 4 . | . . . . . . . . . . . Level 5 . | . . . . . . . . . . . High Security . | . . . . . . . . . . . Max Security . | . . . . . . . . . . . Squads Dispatched 14 | . 1 1 2 6 2 . . . 2 . Investigation 8 | . 1 . 1 4 2 . . . . . Extermination 1 | . . . . 1 . . . . . . Reinforcement 5 | . . 1 1 1 . . . . 2 . Assault . | . . . . . . . . . . . Garrison . | . . . . . . . . . . . Intercept . | . . . . . . . . . . . Searches Triggered . | . . . . . . . . . . . Construction Impeded . | . . . . . . . . . . . Haulers Reinforced . | . . . . . . . . . . . Active Scanning Responses . | . . . . . . . . . . . Cargo Convoy Interrupts . | . . . . . . . . . . . Stealth | -11 -10 -9 -8 -7 -6 -6 -6 -5 -5 -4 --------- Run | Yrd Mat Mat Mat Fac Fac Low Low Fac DSF Fac Distress Signals 4 | . . 2 1 1 . . . . . . Communications Jammed . | . . . . . . . . . . . Distress Signals . | . . . . . . . . . . . Times Spotted 111 | . 8 23 8 26 12 11 4 . 13 6 Peak Tracking Total 7 | . 4 5 3 5 6 6 4 . 7 6 Tactical Retreats 15 | . 1 1 . 5 2 3 . . 3 . Traps | -11 -10 -9 -8 -7 -6 -6 -6 -5 -5 -4 ------- Run | Yrd Mat Mat Mat Fac Fac Low Low Fac DSF Fac Traps Triggered 8 | . . 1 3 . . . . . 3 1 Indirectly . | . . . . . . . . . . . Trap Hack Attempts . | . . . . . . . . . . . Triggered . | . . . . . . . . . . . Disarmed 4 | . . . . . 4 . . . . . Reprogrammed . | . . . . . . . . . . . Reused . | . . . . . . . . . . . Traps Extracted . | . . . . . . . . . . . Installed . | . . . . . . . . . . . Triggered . | . . . . . . . . . . . Machines | -11 -10 -9 -8 -7 -6 -6 -6 -5 -5 -4 ---------- Run | Yrd Mat Mat Mat Fac Fac Low Low Fac DSF Fac Machines Disabled . | . . . . . . . . . . . Max in Single Turn . | . . . . . . . . . . . Garrison Access 1 | . . . . 1 . . . . . . Machines Repaired . | . . . . . . . . . . . Machines Dismantled . | . . . . . . . . . . . Machines Sabotaged . | . . . . . . . . . . . Overloaded Fab Kills . | . . . . . . . . . . . Hacking | -11 -10 -9 -8 -7 -6 -6 -6 -5 -5 -4 --------- Run | Yrd Mat Mat Mat Fac Fac Low Low Fac DSF Fac Machines Accessed 27 | . 2 6 4 9 5 . . 1 . . Terminals 18 | . 2 5 3 3 4 . . 1 . . Fabricators 4 | . . . . 3 1 . . . . . Repair Stations 1 | . . . . 1 . . . . . . Recycling Units 1 | . . . 1 . . . . . . . Scanalyzers 2 | . . 1 . 1 . . . . . . Garrison Access 1 | . . . . 1 . . . . . . Total Hacks 75 | . 6 15 14 22 17 . . 1 . . Successful 50 | . 1 7 12 18 11 . . 1 . . Failed 25 | . 5 8 2 4 6 . . . . . Catastrophic 4 | . 2 1 1 . . . . . . . Database Lockouts . | . . . . . . . . . . . Manual 14 | . 4 1 . 5 4 . . . . . Terminals 51 | . 6 9 11 9 15 . . 1 . . Fabricators 7 | . . . . 5 2 . . . . . Repair Stations 3 | . . . . 3 . . . . . . Recycling Units 3 | . . . 3 . . . . . . . Scanalyzers 9 | . . 6 . 3 . . . . . . Garrison Access 2 | . . . . 2 . . . . . . Terminal Hacks 26 | . 1 4 9 2 9 . . 1 . . Record 3 | . . . 3 . . . . . . . Prototype ID Bank 1 | . . . 1 . . . . . . . Open DSF 2 | . . . . . 1 . . 1 . . Level Access Points 1 | . . . . 1 . . . . . . Branch Access Points 1 | . . 1 . . . . . . . . Emergency Access Points 1 | . 1 . . . . . . . . . Alert Level 2 | . . . . 1 1 . . . . . Unreport Threat 2 | . . . 1 . 1 . . . . . Locate Traps 1 | . . . . . 1 . . . . . Disarm Traps 2 | . . . . . 2 . . . . . Dispatch Records 2 | . . 2 . . . . . . . . Maintenance Status 1 | . . 1 . . . . . . . . Security Status 1 | . . . 1 . . . . . . . Investigation Status 1 | . . . . . 1 . . . . . Reinforcement Status 1 | . . . 1 . . . . . . . Recall Investigation 1 | . . . 1 . . . . . . . Registered Components 1 | . . . . . 1 . . . . . Registered Prototypes 2 | . . . 1 . 1 . . . . . Fabricator Hacks 6 | . . . . 5 1 . . . . . Network Status 2 | . . . . 2 . . . . . . Load Schematic 2 | . . . . 2 . . . . . . Build 2 | . . . . 1 1 . . . . . Repair Station Hacks 3 | . . . . 3 . . . . . . Scan Component 1 | . . . . 1 . . . . . . Repair 1 | . . . . 1 . . . . . . Refit 1 | . . . . 1 . . . . . . Recycling Unit Hacks 3 | . . . 3 . . . . . . . Retrieve Matter 1 | . . . 1 . . . . . . . Retrieve Components 2 | . . . 2 . . . . . . . Scanalyzer 6 | . . 3 . 3 . . . . . . Insert Component 2 | . . 1 . 1 . . . . . . Analyze 4 | . . 2 . 2 . . . . . . Garrison Access Hacks 2 | . . . . 2 . . . . . . Seal Access 1 | . . . . 1 . . . . . . Coupler Status 1 | . . . . 1 . . . . . . Unauthorized Hacks 4 | . . . . 3 1 . . . . . Terminals 4 | . . . . 3 1 . . . . . Assimilate 3 | . . . . 2 1 . . . . . Botnet 1 | . . . . 1 . . . . . . Fabricators . | . . . . . . . . . . . Repair Stations . | . . . . . . . . . . . Recycling Units . | . . . . . . . . . . . Scanalyzers . | . . . . . . . . . . . Garrison Access . | . . . . . . . . . . . Data Cores Recovered . | . . . . . . . . . . . Used . | . . . . . . . . . . . Hacking Detections 22 | . 2 4 4 7 4 . . 1 . . Full Trace Events 7 | . 1 . . 4 2 . . . . . Feedback Events 1 | . . . . 1 . . . . . . Corruption 1 | . . . . 1 . . . . . . Feedback Blocked . | . . . . . . . . . . . Robot Schematics Acquired . | . . . . . . . . . . . Robots Built . | . . . . . . . . . . . Authchips . | . . . . . . . . . . . Time . | . . . . . . . . . . . Total Robot Build Rating . | . . . . . . . . . . . Part Schematics Acquired 2 | . . 1 . 1 . . . . . . Parts Built 4 | . . . . 2 2 . . . . . Authchips . | . . . . . . . . . . . Time 126 | . . . . 62 64 . . . . . Total Part Build Rating 20 | . . . . 4 16 . . . . . Parts Repaired 1 | . . . . 1 . . . . . . Time 19 | . . . . 19 . . . . . . Parts Recycled . | . . . . . . . . . . . Recycled Matter . | . . . . . . . . . . . Retrieved Matter . | . . . . . . . . . . . Retrieved Components 1 | . . . 1 . . . . . . . Parts Scanalyzed 2 | . . 1 . 1 . . . . . . Part Schematics Acquired 2 | . . 1 . 1 . . . . . . Parts Damaged 1 | . . 1 . . . . . . . . Bothacking | -11 -10 -9 -8 -7 -6 -6 -6 -5 -5 -4 ------------ Run | Yrd Mat Mat Mat Fac Fac Low Low Fac DSF Fac Used RIF Installer . | . . . . . . . . . . . Robots Hacked 1 | . . . . . . 1 . . . . Non-combat . | . . . . . . . . . . . Combat 1 | . . . . . . 1 . . . . Robot Hacks Applied 1 | . . . . . . 1 . . . . parse_system 1 | . . . . . . 1 . . . . Relay Couplers Released 3 | . . . . 3 . . . . . . Programmers 3 | . . . . 3 . . . . . . Fabnet Peak Effective % . | . . . . . . . . . . . Robots Rewired 1 | . . . . . 1 . . . . . Allies Hacked . | . . . . . . . . . . . Hacks Repelled . | . . . . . . . . . . . Allies | -11 -10 -9 -8 -7 -6 -6 -6 -5 -5 -4 -------- Run | Yrd Mat Mat Mat Fac Fac Low Low Fac DSF Fac Total Allies 2 | . . . . 1 1 . . . . . Largest Group 1 | . . . . 1 1 . . . . . Highest-Rated Group 29 | . . . . 26 29 . . . . . Highest-Rated Ally 29 | . . . . 26 29 . . . . . Total Orders . | . . . . . . . . . . . Ally Attacks . | . . . . . . . . . . . Total Damage . | . . . . . . . . . . . Kills . | . . . . . . . . . . . Allies Corrupted . | . . . . . . . . . . . Allies Melted 1 | . . . . 1 . . . . . . Intel | -11 -10 -9 -8 -7 -6 -6 -6 -5 -5 -4 ------- Run | Yrd Mat Mat Mat Fac Fac Low Low Fac DSF Fac Robot Analysis Total . | . . . . . . . . . . . Derelict Logs Recovered 2 | . . . . . . 1 1 . . . Drone Launches . | . . . . . . . . . . . Drone Recoveries . | . . . . . . . . . . . Exploration | -11 -10 -9 -8 -7 -6 -6 -6 -5 -5 -4 ------------- Run | Yrd Mat Mat Mat Fac Fac Low Low Fac DSF Fac Turns Passed 3175 | 97 181 682 385 961 297 200 62 3 131 176 Spaces Moved 3227 | 63 111 419 246 906 618 424 123 4 82 231 Core 654 | 14 . . . . 4 207 123 4 75 227 Treads 4 | . . . . . . . . . . 4 Legs 1311 | 49 111 419 246 485 . 1 . . . . Wheels . | . . . . . . . . . . . Hover . | . . . . . . . . . . . Flight 1258 | . . . . 421 614 216 . . 7 . Fastest Speed 27 | 50 120 120 120 29 27 35 50 50 30 50 Average Speed 71 | 131 120 120 120 77 28 43 50 50 66 52 Slowest Speed 200 | 200 120 190 120 122 200 120 50 50 200 200 Overloaded Moves . | . . . . . . . . . . . Propulsion Burnouts . | . . . . . . . . . . . Robots Hopped 30 | . . . . 4 24 2 . . . . Cave-ins Triggered 1 | . . . 1 . . . . . . . Exploration Rate (%) 30 | 5 28 41 29 26 19 70 19 . 65 5 Regions Visited 10 Branch Regions 2 Pre-discovered Areas 1 | . . . . . . . 1 . . . Known Exits Taken 6 | . 1 1 1 1 1 . . 1 . . Unknown Exits Taken 3 | 1 . . . . . 1 1 . . . Scrap Searched 1 | . . . . . . 1 . . . . Spaces Dug 6 | . . . 6 . . . . . . . Terrain Destroyed 80 | . . . 6 8 . . . . 58 8 Melee 6 | . . . 6 . . . . . . . Projectile 9 | . . . . 8 . . . . . 1 AOE 65 | . . . . . . . . . 58 7 Terrain Rammed . | . . . . . . . . . . . Walls Destroyed . | . . . . . . . . . . . Machines Disabled . | . . . . . . . . . . . Actions | -11 -10 -9 -8 -7 -6 -6 -6 -5 -5 -4 --------- Run | Yrd Mat Mat Mat Fac Fac Low Low Fac DSF Fac Total 3785 | 74 136 527 302 1057 712 437 122 4 145 269 Wait 225 | . 7 20 30 63 95 6 . . 4 . Move 3159 | 62 110 418 245 897 571 419 122 3 81 231 Hop 28 | . . . . 4 22 2 . . . . Pick Up 31 | 6 1 11 . 10 1 . . . 2 . Fast Attach 51 | 6 1 6 4 11 5 1 . . 12 5 Attach 15 | . . 1 3 6 2 2 . 1 . . Detach 3 | . . . . 2 . 1 . . . . Swap 15 | . 2 9 . 3 1 . . . . . Drop 45 | . 1 20 4 11 7 1 . . 1 . Fire 90 | . 14 22 . 38 1 2 . . 6 7 Melee 48 | . . 20 16 12 . . . . . . Ram 14 | . . . . . . 1 . . 1 12 Kick 2 | . . . . . . 2 . . . . Crush 14 | . . . . . . . . . . 14 Escape Stasis 38 | . . . . . . . . . 38 . Rewire 7 | . . . . . 7 . . . . . Trap . | . . . . . . . . . . . Miscellaneous . | . . . . . . . . . . . Route ------- -11/Scrapyard -10/Materials -9/Materials (discovered 3 exits: *Mat x2 / Min) -8/Materials -7/Factory (discovered 4 exits: *Fac x4) -6/Factory -6/Lower Caves -6/Lower Caves -5/Factory -5/DSF -4/Factory History --------- Turn | Location | Event 19 | -11/Scrapyard | Discovered new exit (range 16) 98 | -11/Scrapyard | Entered Materials 261 | -10/Materials | Discovered new exit (range 9) 278 | -10/Materials | Identified exit to Materials 279 | -10/Materials | Entered another Materials area 279 | -9/Materials | Evolved 2 slots: Propulsion x2 300 | -9/Materials | Build established: Mutant 595 | -9/Materials | Discovered new exit (range 3) 596 | -9/Materials | Identified exit to Materials 699 | -9/Materials | Identified exit to Mines 899 | -9/Materials | Discovered exit to Materials (range 8) 961 | -9/Materials | Entered another Materials area 961 | -8/Materials | Evolved 2 slots: Utility x2 1197 | -8/Materials | Crushed by falling debris 1228 | -8/Materials | Lost 4 parts (1p2n1u) 1275 | -8/Materials | Build established: Hacker-Mutant 1329 | -8/Materials | Discovered new exit (range 7) 1345 | -8/Materials | Identified exit to Factory 1346 | -8/Materials | Entered Factory 1346 | -7/Factory | Evolved 2 slots: Utility x2 1794 | -7/Factory | Repaired Carbon-fiber Leg 2146 | -7/Factory | Identified exit to Factory 2155 | -7/Factory | Lost 3 parts (1p1n1u) 2232 | -7/Factory | Fabricated Shield Generator? 2307 | -7/Factory | Entered another Factory area 2307 | -6/Factory | Evolved 2 slots: Utility x2 2491 | -6/Factory | Fabricated Adv. Recalibrator (x2) 2594 | -6/Factory | Discovered new exit (range 21) 2604 | -6/Factory | Identified exit to Lower Caves 2604 | -6/Factory | Entered Lower Caves 2605 | -6/Lower Caves | Spotted B-75 Beast 2635 | -6/Lower Caves | Lost 5 parts (3n2u) 2747 | -6/Lower Caves | Core integrity fell below 50% 2754 | -6/Lower Caves | Released all parts (5) 2780 | -6/Lower Caves | Learned Factory trap positions 2798 | -6/Lower Caves | Discovered new exit (range 10) 2804 | -6/Lower Caves | Entered another Lower Caves area 2863 | -6/Lower Caves | Learned location of Extension (-5) 2863 | -6/Lower Caves | Discovered new exit (range 5) 2866 | -6/Lower Caves | Entered Factory 2866 | -5/Factory | Evolved 2 slots: Propulsion x2 2867 | -5/Factory | Loaded intel: 101 trap records 2869 | -5/Factory | Identified exit to DSF 2869 | -5/Factory | Entered DSF 2886 | -5/DSF | Additional patrols routed to DSF 2935 | -5/DSF | Core integrity fell below 50% 2959 | -5/DSF | Core integrity fell below 20% 2986 | -5/DSF | Discovered new exit (range 16) 2994 | -5/DSF | Lost 10 parts (1n4u5w) 3000 | -5/DSF | Entered Factory 3000 | -4/Factory | Evolved 2 slots: Propulsion x2 3033 | -4/Factory | Build established: Mutant 3128 | -4/Factory | Core integrity fell below 50% 3152 | -4/Factory | Lost 3 parts (3n) 3169 | -4/Factory | Core integrity fell below 20% 3176 | -4/Factory | Destroyed by G-67 Veteran with Field Laser Last Messages --------------- 03143_ Acquired 4 matter. 03144_ Acquired 6 matter. 03146_ Acquired 2 matter. 03146_ Acquired 1 matter. 03149_ K-01 Serf collects debris. 03153_ System corrupted: Matter fused (-8). 03153_ K-01 Serf collects debris. 03158_ Acquired Hardcell Cannon. 03164_ P-70 Sage destroyed. 03166_ System corrupted: Hardcell Cannon jammed. 03168_ P-70 Sage knocked back. 03172_ Destroyed Tesla Rifle. 03173_ Hardcell Cannon destroyed. 03174_ Acquired Hpw. Shock Rifle. 03176_ Chain reaction triggered in Lgt. Antimatter Reactor. 03176_ Destroyed Hpw. Shock Rifle. 03176_ Hpw. Shock Rifle destroyed. 03176_ Destroyed Hpw. Shock Rifle. 03176_ G-67 Veteran destroyed. Map ----- +----------------------------------------------------+ | ?????????????????????????????????????????????????? | | ?????????????????????????????????????????????????? | | ?????????????????????????????????????????????????? | | ?????????????????????????????????????????????????? | | ?????????????????????????????????????????????????? | | ?????????????????????????????????????????????????? | | ?????????????????????????????????????????????????? | | ?????????????????????????????????????????????????? | | ?????????????????????????????????????????????????? | | ?????????????????????????????????????????????????? | | ?????????????????????????????????????????????????? | | #######??????????????????????????????????????????? | | # #???????????????? ?????????????????????????? | | # "#########+##### ?????????????????????????? | | # T# ?????????????????????????? | | # "# ?????????????????????????? | | # # ????????????????????????? | | #""" + ????????????????????????? | | #""" # ????????????????????????? | | #""" # ###+####### #????????????????????????? | | # # # # #????????????????????????? | | #!= ####### # #????????????????????????? | | # #?????# # ###########??????????????? | | # #?????# # ; #??????????????? | | #####/#?????# # ; #??????????????? | | ????# #?????# ; ;@ #??????????????? | | ????# #?????# k ;!ggp #??????????????? | | ????# #?????# ; ;[ #??????????????? | | ????# #?????###########=%! #??????????????? | | ????# ##############??# ; #??????????????? | | ????# / #??# # #??????????????? | | ????# # #??# ###########??????????????? | | ????# # """"" #??#m#????????????????????????? | | ????# # """"" #??# #????????????????????????? | | ????# # """ #??# #????????????????????????? | | ????# # #### ######???????????????????? | | ????# # / #???????????????????? | | ????# # ! # #???????????????????? | | ????# # " "" # % " "" #???????????????????? | | ????# # "R"" # %% """#???????????????????? | | ????# # """" # %% F"#???????????????????? | | ????# # # """#???????????????????? | | ????# ##########+### % "" #???????????????????? | | ????# #??????# # #???????????????????? | | ????# ######## " %%% #???????????????????? | | ????# "T #???????????????????? | | ????#### ##### #???????????????????? | | ???????# #???# ##### #???????????????????? | | ########+###### ##???###+###???????????????????? | | # # #??????????????????????????????? | +----------------------------------------------------+ Best States ------------- Heat Dissipation 43 Energy Generation 14 Energy Capacity 265 Matter Stores 300 Matter Capacity 300 Sight Range 22 Robot Scan Range 16 Terrain Scan Range 16 Terrain Scan Density 10 ECM Strength 2 Evasion (%) 64 Recoil Reduction 2 Offensive Hacking 40 Item Schematics ----------------- Shield Generator | -9/Materials | Scanalyzed Hacking Suite | -7/Factory | Scanalyzed Robot Schematics ------------------ None Fabricated ------------ Shield Generator | x2 | -7/Factory Adv. Recalibrator | x2 | -6/Factory | Preloaded Alien Tech Used ----------------- None Achievements -------------- Just What I Needed Please Form A Line Streaker Unlikely Earthworm Challenges ------------ None Game ------ Seed TiamatHypercooledCorpse Manual? 0 Play Time 01:12:56 Cumulative 11.1 hours Start 2024.04.04 @ 12:09:17 End 2024.04.04 @ 16:17:05 Sessions 2 Manual Loads 0 Difficulty Rogue Special Mode None Game No. 14 Rogue 14 Adventurer 0 Explorer 0 Win Type - Total 0 Types 0/0/0/0/0/0/0/0/0 Lore% 4 Gallery% 18 Achievement% 16 Wizard Run 0 Options --------- Layout 1 ASCII 0 Keyboard 0 Movement Numpad Keybinds 0 Fullscreen 1 Font 24/Crisp Map View 50x35 Zoom Use 0% Tactical HUD 1 Map Filters NONE Filters NONE Steam 1 RUN: 3a4b12e7-0eec-4d51-9e91-cba7069ad114